bitfinex/quotes_BTCUSD_20260126
["timestamp","ask_amount","ask_price","bid_price","bid_amount"]
[1769426657556,0.56348708,87937.0,87921.0,0.03527948]
[1769426657995,0.02444136,87937.0,87922.0,0.56206207]
[1769426658175,0.396972,87950.0,87929.0,0.01822959]
[1769426658374,0.39352042,87948.0,87930.0,0.82353681]
[1769426658603,0.02308242,87948.0,87930.0,0.82239944]
[1769426658778,0.57756333,87948.0,87930.0,0.82239944]
[1769426658978,0.57756333,87948.0,87929.0,0.01822959]
[1769426658979,0.60064575,87946.0,87929.0,0.01822959]
[1769426659177,0.02308242,87945.0,87930.0,0.27171108]
[1769426659589,0.02842718,87944.0,87929.0,0.01822959]
[1769426659779,0.02842718,87944.0,87925.0,0.56507401]
[1769426659780,0.60599051,87944.0,87925.0,0.56507401]
[1769426659975,0.60064575,87944.0,87925.0,0.56507401]
[1769426660580,0.02308242,87943.0,87926.0,0.00113732]
[1769426660969,0.57756333,87942.0,87926.0,0.00113732]
[1769426662022,0.63876493,87942.0,87926.0,0.00113732]
[1769426662429,0.08428402,87942.0,87927.0,0.56507401]
[1769426662689,0.02308242,87942.0,87928.0,0.00113729]
[1769426666096,0.02308242,87942.0,87929.0,0.02274562]
[1769426666263,0.02308242,87942.0,87927.0,0.02274562]
[1769426669467,0.39922864,87944.0,87927.0,0.02274562]
[1769426672467,0.0284275,87943.0,87927.0,0.02274562]
[1769426672617,0.0284275,87943.0,87926.0,0.58822519]
[1769426673045,0.60599083,87943.0,87926.0,0.58822519]
[1769426673235,0.57756333,87945.0,87926.0,0.58822519]
[1769426673398,0.57756333,87943.0,87926.0,0.58822519]
[1769426673598,0.02842782,87942.0,87926.0,0.58822519]
[1769426675164,0.3799247,87943.0,87927.0,0.11146927]
[1769426675510,0.00511411,87942.0,87927.0,0.11146927]
[1769426677060,0.00511411,87942.0,87926.0,0.02315118]
[1769426677061,0.27194893,87940.0,87926.0,0.02315118]
[1769426677258,0.87259468,87940.0,87924.0,0.01700921]
[1769426677458,0.57756333,87940.0,87924.0,0.01700921]
[1769426677713,0.57756333,87938.0,87921.0,0.02274769]
[1769426677893,0.60064575,87937.0,87921.0,0.02274769]
[1769426678093,0.60064575,87937.0,87922.0,0.11160278]
[1769426680287,0.02308242,87937.0,87923.0,0.02274717]
[1769426680493,0.57756333,87946.0,87923.0,0.58782118]
[1769426680745,0.02308242,87943.0,87923.0,0.56507401]
[1769426681036,0.60064575,87942.0,87923.0,0.56507401]
[1769426681330,0.00511411,87941.0,87923.0,0.56507401]
[1769426681544,0.00511411,87941.0,87923.0,0.67667679]
[1769426681755,0.00511411,87941.0,87924.0,0.01701054]
[1769426682205,0.60064575,87942.0,87924.0,0.01701054]
[1769426683275,0.02308242,87942.0,87930.0,0.27194893]
[1769426683496,0.57756333,87948.0,87931.0,0.01700918]
[1769426683716,0.60064575,87946.0,87931.0,0.10813951]
[1769426683924,0.60575986,87945.0,87931.0,0.01700918]
[1769426684138,0.60064575,87945.0,87931.0,0.01700918]
[1769426684377,0.00511411,87944.0,87931.0,0.01700918]
[1769426686270,0.58267744,87944.0,87931.0,0.01700918]
[1769426686464,0.873721,87949.0,87931.0,0.01700918]
[1769426686770,0.00511411,87948.0,87931.0,0.01700918]
[1769426686937,0.60575986,87948.0,87931.0,0.01700918]
[1769426687151,0.60064575,87948.0,87931.0,0.01700918]
[1769426687354,0.60575986,87947.0,87931.0,0.01700918]
[1769426687537,0.60064575,87947.0,87931.0,0.01700918]
[1769426687736,0.58267744,87946.0,87931.0,0.01700918]
[1769426687937,0.57756333,87946.0,87931.0,0.01700918]
[1769426688234,0.00511411,87945.0,87931.0,0.01700918]
[1769426689046,0.59726119,87945.0,87931.0,0.01700918]
[1769426689253,0.00511411,87944.0,87931.0,0.01700918]
[1769426691153,0.00511411,87944.0,87931.0,0.0001]
[1769426691505,0.02202329,87944.0,87928.0,0.56507401]
[1769426691688,0.64420436,87943.0,87923.0,0.02289235]
[1769426691930,0.27194893,87940.0,87924.0,0.00122531]
[1769426692098,0.02491988,87936.0,87921.0,0.0001149]
[1769426692299,0.59726119,87935.0,87921.0,0.02286259]
[1769426692508,0.59726119,87935.0,87921.0,0.0001149]
[1769426692877,0.59726119,87935.0,87921.0,0.0888254]
[1769426693632,0.59726119,87935.0,87921.0,0.0001149]
[1769426699637,0.02491988,87936.0,87921.0,0.0001149]
[1769426700501,0.02491988,87936.0,87922.0,0.00121842]
[1769426701705,0.02491988,87936.0,87921.0,0.02286259]
[1769426705703,0.02491988,87936.0,87921.0,0.04575494]
[1769426709304,0.02491988,87936.0,87921.0,0.15735772]
[1769426709746,0.02491988,87936.0,87921.0,0.04575494]
[1769426711278,0.02491988,87936.0,87921.0,0.65525003]
[1769426711495,0.02491988,87936.0,87921.0,0.63250234]
[1769426711998,0.02202329,87938.0,87922.0,0.01137371]
[1769426712215,0.02202329,87938.0,87921.0,0.7007454]
[1769426712365,0.02202329,87938.0,87922.0,0.11160278]
[1769426712885,0.02202329,87938.0,87921.0,0.64387618]
[1769426713092,0.02202329,87938.0,87922.0,0.00121246]
[1769426713300,0.02202329,87938.0,87922.0,0.00234531]
[1769426717416,0.02202329,87938.0,87922.0,0.01371902]
[1769426717838,0.02202329,87938.0,87922.0,0.02274743]
[1769426718010,0.02202329,87938.0,87923.0,0.11160278]
[1769426718211,0.02202329,87938.0,87924.0,0.02274691]
[1769426725780,0.59726119,87939.0,87924.0,0.09098749]
[1769426725986,0.59726119,87939.0,87924.0,0.03412036]
[1769426726523,0.59726119,87939.0,87924.0,0.0581137]
[1769426730571,0.59726119,87939.0,87924.0,0.04674025]
[1769426731107,0.59726119,87939.0,87924.0,0.0581137]
[1769426731885,0.59726119,87939.0,87925.0,0.11160278]
[1769426731886,0.40929982,87939.0,87925.0,0.11160278]
[1769426732086,0.40929982,87939.0,87926.0,0.02274639]
[1769426733515,0.61818771,87938.0,87926.0,0.02274639]
[1769426733722,0.59616442,87938.0,87924.0,0.02399334]
[1769426733937,0.02202329,87937.0,87924.0,0.02399334]
[1769426734990,0.59616442,87936.0,87921.0,0.01160396]
[1769426735226,0.59616442,87936.0,87921.0,0.0001149]
[1769426736511,0.59616442,87936.0,87921.0,0.02286259]
[1769426736718,0.59616442,87936.0,87921.0,0.11044057]
[1769426737913,0.59616442,87936.0,87921.0,0.08769288]
[1769426738205,0.59616442,87936.0,87921.0,0.01274049]
[1769426738563,0.59616442,87936.0,87922.0,0.02399334]
[1769426738787,0.27196058,87940.0,87922.0,0.02399334]
[1769426739031,0.61818771,87939.0,87923.0,0.01375791]
[1769426739208,0.59616442,87939.0,87923.0,0.01375791]
[1769426739418,0.02202329,87938.0,87923.0,0.01375791]
[1769426739632,0.02202329,87938.0,87924.0,0.11160278]
[1769426739869,0.02202329,87938.0,87925.0,0.01375774]
[1769426742188,0.59616442,87938.0,87925.0,0.01375774]
[1769426744966,0.59616442,87938.0,87922.0,0.02399334]
[1769426746030,0.02202329,87937.0,87922.0,0.02399334]
[1769426746433,0.61818771,87937.0,87921.0,0.0001149]
[1769426746658,0.62005108,87937.0,87921.0,0.0001149]
[1769426750141,0.62005108,87937.0,87921.0,0.0001274]
[1769426751687,0.62005108,87937.0,87921.0,0.10362957]
[1769426752701,0.57106803,87946.0,87924.0,0.58530329]
[1769426752925,0.57106803,87943.0,87925.0,0.02274665]
[1769426753135,0.68489828,87942.0,87925.0,0.02274665]
[1769426753330,0.11383025,87941.0,87925.0,0.02274665]
[1769426753504,0.57106803,87942.0,87925.0,0.04766902]
[1769426753744,0.11382993,87941.0,87925.0,0.04766902]
[1769426753935,0.57106803,87942.0,87925.0,0.04766902]
[1769426754141,0.11382957,87941.0,87925.0,0.04766902]
[1769426754480,0.57106803,87941.0,87925.0,0.04766902]
[1769426758856,0.57106803,87941.0,87925.0,0.04035803]
[1769426764494,0.02301775,87937.0,87925.0,0.01543566]
[1769426764698,0.57106803,87934.0,87921.0,0.01556399]
[1769426765926,0.57106803,87932.0,87921.0,0.0001274]
[1769426766346,0.59408578,87932.0,87921.0,0.0001274]
[1769426767554,0.27196058,87931.0,87913.0,0.01563659]
[1769426767838,0.27196058,87931.0,87914.0,0.17476]
[1769426767839,0.27196058,87923.0,87914.0,0.17476]
[1769426768158,0.02301775,87918.0,87911.0,0.0001]
[1769426768327,0.02301775,87918.0,87910.0,0.0002]
[1769426768328,0.59408578,87917.0,87910.0,0.0002]
[1769426769084,0.59408578,87917.0,87910.0,0.00027413]
[1769426769927,0.02301775,87929.0,87910.0,0.02302465]
[1769426770134,0.02301775,87924.0,87910.0,0.02302465]
[1769426770342,0.57106803,87923.0,87910.0,0.02302465]
[1769426770764,0.0568578,87939.0,87912.0,0.58530329]
[1769426770974,0.0568578,87939.0,87910.0,0.34048608]
[1769426770975,0.17476,87933.0,87915.0,1e-08]
[1769426771254,0.57106803,87931.0,87915.0,0.00525329]
[1769426771553,0.57106803,87931.0,87910.0,0.27223471]
[1769426771554,0.02301775,87929.0,87910.0,0.27223471]
[1769426771752,0.02301775,87928.0,87910.0,0.27223471]
[1769426772361,0.02301775,87928.0,87910.0,0.857538]
[1769426772585,0.02301775,87928.0,87911.0,0.58530329]
[1769426772786,0.02301775,87928.0,87912.0,0.10953781]
[1769426773204,0.02301775,87928.0,87911.0,0.58530329]
[1769426774299,0.02301775,87927.0,87911.0,0.58530329]
[1769426774490,0.02301775,87927.0,87912.0,0.02228472]
[1769426775904,0.42466585,87928.0,87912.0,0.02228472]
[1769426777623,0.29497833,87930.0,87914.0,0.02492237]
[1769426777832,0.29497833,87930.0,87915.0,0.02228278]
[1769426780108,0.29497833,87930.0,87883.0,0.01137876]
[1769426780109,0.57025354,87904.0,87883.0,0.01137876]
[1769426780330,0.0245983,87903.0,87883.0,0.58809428]
[1769426780545,0.0245983,87903.0,87884.0,0.00318709]
[1769426780761,0.0245983,87903.0,87883.0,5.829e-05]
[1769426780762,0.0245983,87903.0,87885.0,0.59122308]
[1769426782535,0.0245983,87903.0,87887.0,0.58803599]
[1769426784208,0.12877334,87903.0,87887.0,0.58803599]
[1769426786799,0.0245983,87902.0,87887.0,0.58803599]
[1769426788272,0.67442858,87903.0,87883.0,5.829e-05]
[1769426788273,0.57025354,87896.0,87883.0,5.829e-05]
[1769426788517,0.27196058,87897.0,87883.0,5.829e-05]
[1769426788518,0.01,87887.0,87883.0,5.829e-05]
[1769426788736,0.0245983,87886.0,87883.0,5.829e-05]
[1769426790036,0.0245983,87894.0,87883.0,5.829e-05]
[1769426790411,0.0245983,87893.0,87883.0,5.829e-05]
[1769426790803,0.0245983,87892.0,87883.0,5.829e-05]
[1769426794366,0.0245983,87891.0,87883.0,5.829e-05]
[1769426795879,0.0245983,87901.0,87883.0,0.58809428]
[1769426796108,0.1993983,87901.0,87885.0,0.58803599]
[1769426798515,0.27227717,87900.0,87885.0,0.58803599]
[1769426798765,0.27227717,87900.0,87885.0,0.68211881]
[1769426799533,0.27227717,87900.0,87885.0,0.58803599]
[1769426800127,0.0245983,87899.0,87885.0,0.58803599]
[1769426804406,0.0245983,87896.0,87883.0,5.829e-05]
[1769426804607,0.02844302,87895.0,87883.0,5.829e-05]
[1769426808049,0.0245983,87896.0,87883.0,5.829e-05]
[1769426808698,0.27227717,87900.0,87883.0,0.58843263]
[1769426809196,0.02265265,87901.0,87884.0,0.6859873]
[1769426809437,0.02844141,87900.0,87884.0,0.6859873]
[1769426809791,0.32337123,87900.0,87884.0,0.6859873]
[1769426809952,0.27227717,87900.0,87884.0,0.6859873]
[1769426810160,0.02265265,87899.0,87884.0,0.58837434]
[1769426810977,0.02265265,87898.0,87884.0,0.58837434]
[1769426811401,0.02265265,87898.0,87883.0,5.829e-05]
[1769426811993,0.02265265,87892.0,87883.0,5.829e-05]
[1769426812202,0.02265265,87891.0,87883.0,5.829e-05]
[1769426812858,0.02265265,87882.0,87861.0,0.01218106]
[1769426813076,0.02265265,87882.0,87861.0,0.01222768]
[1769426813707,0.02265265,87882.0,87861.0,0.02360929]
[1769426814311,0.02265265,87882.0,87861.0,0.01222768]
[1769426814508,0.02265265,87879.0,87862.0,0.58837434]
[1769426814785,0.02265265,87875.0,87861.0,4.662e-05]
[1769426814994,0.60918374,87873.0,87861.0,4.662e-05]
[1769426815200,0.02265265,87872.0,87861.0,4.662e-05]
[1769426819634,0.60918374,87872.0,87861.0,4.662e-05]
[1769426819833,0.60918374,87871.0,87861.0,4.662e-05]
[1769426820137,0.02265265,87870.0,87861.0,4.662e-05]
[1769426821577,0.09041136,87869.0,87861.0,4.662e-05]
[1769426822392,0.60918374,87879.0,87861.0,4.662e-05]
[1769426822615,0.27227717,87880.0,87861.0,4.662e-05]
[1769426822616,0.02265265,87876.0,87861.0,4.662e-05]
[1769426822817,0.02265265,87874.0,87861.0,4.662e-05]
[1769426823695,0.27227717,87880.0,87863.0,0.02257964]
[1769426823902,0.0284482,87879.0,87864.0,0.70043789]
[1769426824306,0.17484,87881.0,87866.0,0.58837434]
[1769426824974,0.17484,87881.0,87865.0,0.02257964]
[1769426824975,0.02844788,87880.0,87865.0,0.02257964]
[1769426825255,0.60918374,87879.0,87861.0,4.662e-05]
[1769426825397,0.02265265,87876.0,87861.0,4.662e-05]
[1769426825598,0.65879439,87875.0,87861.0,4.662e-05]
[1769426825802,0.02265265,87874.0,87861.0,4.662e-05]
[1769426826019,0.60918374,87873.0,87861.0,4.662e-05]
[1769426829867,0.27227717,87871.0,87837.0,0.0001792]
[1769426830031,0.05689602,87880.0,87851.0,0.0113829]
[1769426830032,0.60918374,87868.0,87851.0,0.0113829]
[1769426830338,0.60918374,87868.0,87853.0,0.02257964]
[1769426830557,0.02265265,87875.0,87855.0,0.61095398]
[1769426830684,0.60918374,87874.0,87855.0,0.01138239]
[1769426830899,0.60918374,87874.0,87857.0,0.61095398]
[1769426831351,0.02845014,87873.0,87857.0,0.61095398]
[1769426832212,0.60918374,87873.0,87857.0,0.61095398]
[1769426832465,0.02845047,87872.0,87857.0,0.61095398]
[1769426832612,0.27227717,87870.0,87857.0,0.61095398]
[1769426832816,0.27227717,87870.0,87858.0,0.07071152]
[1769426833050,0.27227717,87870.0,87857.0,0.61095398]
[1769426833392,0.60918374,87878.0,87859.0,0.61095398]
[1769426833593,0.02844885,87877.0,87859.0,0.61095398]
[1769426834288,0.63183639,87877.0,87859.0,0.61095398]
[1769426835657,0.66028556,87876.0,87859.0,0.61095398]
[1769426835779,0.63183639,87876.0,87859.0,0.61095398]
[1769426835984,0.63763324,87875.0,87859.0,0.61095398]
[1769426836211,0.63183639,87875.0,87859.0,0.61095398]
[1769426836619,0.63183639,87875.0,87839.0,0.58837434]
[1769426836620,0.59892264,87841.0,87839.0,0.58837434]
[1769426836839,0.59892264,87841.0,87840.0,0.67925998]
[1769426837205,0.59892264,87841.0,87840.0,0.61095398]
[1769426837478,0.59892264,87841.0,87840.0,0.72255676]
[1769426837694,0.59892264,87841.0,87840.0,0.77947843]
[1769426838212,0.53848687,87841.0,87840.0,0.7567993]
[1769426838412,0.53848687,87841.0,87840.0,0.69987763]
[1769426841323,0.53848687,87841.0,87840.0,0.58827485]
[1769426841865,0.53848687,87841.0,87839.0,0.00033924]
[1769426842262,0.53848687,87841.0,87839.0,0.02395099]
[1769426843030,0.53848687,87840.0,87839.0,0.00033924]
[1769426843214,0.36306763,87835.0,87834.0,0.6252983]
[1769426843414,0.36306763,87835.0,87834.0,0.7938956]
[1769426843614,0.36306763,87835.0,87834.0,0.72558493]
[1769426844365,0.36306763,87835.0,87834.0,0.13528349]
[1769426844565,0.36306763,87835.0,87834.0,0.02368071]
[1769426845825,0.36306763,87835.0,87834.0,0.61398215]
[1769426846035,0.36306763,87835.0,87834.0,0.67090771]
[1769426846445,0.56355066,87848.0,87835.0,0.06830956]
[1769426846640,0.56355066,87855.0,87837.0,0.01138472]
[1769426846840,0.56355066,87855.0,87837.0,0.02361175]
[1769426847254,0.02836124,87854.0,87837.0,0.02361175]
[1769426847460,0.56355066,87853.0,87837.0,0.02361175]
[1769426847665,0.56355066,87851.0,87837.0,0.02361175]
[1769426847880,0.56355066,87851.0,87838.0,0.11001837]
[1769426848107,0.27227717,87850.0,87837.0,0.02361175]
[1769426849310,0.27227717,87850.0,87837.0,0.03499647]
[1769426849512,0.56355066,87857.0,87840.0,0.01138433]
[1769426849683,0.17488,87856.0,87842.0,0.02361175]
[1769426849883,0.17488,87856.0,87843.0,0.02361175]
[1769426850104,0.17488,87856.0,87844.0,0.02361175]
[1769426851739,0.17488,87860.0,87848.0,0.02361175]
[1769426851983,0.17488,87860.0,87847.0,0.59030144]
[1769426852162,0.17488,87860.0,87848.0,0.02614827]
[1769426852339,0.17488,87860.0,87849.0,0.02614827]
[1769426853434,0.27227717,87880.0,87851.0,0.59030144]
[1769426853744,0.83582783,87870.0,87854.0,0.02614827]
[1769426854507,0.56355066,87865.0,87854.0,0.02614827]
[1769426855117,0.83582783,87870.0,87854.0,0.02614827]
[1769426855623,0.83582783,87870.0,87855.0,0.06416092]
[1769426855624,0.83597057,87870.0,87855.0,0.06416092]
[1769426859564,0.56373276,87866.0,87854.0,0.02614827]
[1769426860111,0.02845273,87865.0,87854.0,0.02614827]
[1769426861523,0.56373276,87866.0,87854.0,0.02614827]
[1769426863305,0.02845273,87865.0,87854.0,0.02614827]
[1769426863936,0.02845273,87865.0,87855.0,0.01555443]
[1769426864299,0.02845273,87865.0,87854.0,0.02614827]
[1769426865118,0.36433398,87866.0,87855.0,0.02276478]
[1769426865497,0.59196828,87865.0,87855.0,0.02276478]
[1769426865746,0.56355066,87865.0,87855.0,0.02276478]
[1769426865962,0.02841762,87864.0,87855.0,0.02276478]
[1769426866586,0.02841762,87864.0,87855.0,0.08668623]
[1769426867322,0.02841762,87864.0,87843.0,0.06830334]
[1769426867323,0.56355066,87863.0,87841.0,0.59030144]
[1769426867529,0.56355066,87863.0,87842.0,0.02361175]
[1769426867733,0.27241991,87860.0,87842.0,0.59030144]
[1769426867960,0.27241991,87860.0,87843.0,0.02361175]
[1769426868174,0.27241991,87860.0,87845.0,0.02361175]
[1769426868348,0.56355066,87859.0,87842.0,0.59030144]
[1769426868559,0.56355066,87859.0,87840.0,0.01138433]
[1769426868735,0.56355066,87859.0,87840.0,0.03468117]
[1769426868941,0.56355066,87859.0,87841.0,0.06830494]
[1769426869141,0.56355066,87859.0,87842.0,0.01138407]
[1769426869355,0.56355066,87859.0,87843.0,0.03468078]
[1769426869356,0.17492,87858.0,87843.0,0.03468078]
[1769426869797,0.17492,87858.0,87843.0,0.02329684]
[1769426870120,0.17492,87858.0,87843.0,0.08021621]
[1769426870318,0.17492,87858.0,87844.0,0.02329684]
[1769426870521,0.17492,87858.0,87846.0,0.02329684]
[1769426872133,0.17492,87862.0,87851.0,0.59817417]
[1769426872364,0.17492,87862.0,87853.0,0.59817417]
[1769426872575,0.17492,87862.0,87854.0,0.02329684]
[1769426872783,0.17492,87862.0,87856.0,0.59817417]
[1769426872956,0.17492,87862.0,87858.0,0.59817417]
[1769426873254,0.17492,87862.0,87859.0,0.00114385]
[1769426873421,0.17492,87862.0,87858.0,0.00114388]
[1769426873625,0.17492,87862.0,87855.0,0.00114387]
[1769426877771,0.17492,87862.0,87850.0,0.59817417]
[1769426878014,0.17492,87862.0,87850.0,0.69783398]
[1769426879182,0.17492,87862.0,87850.0,0.59817417]
[1769426884816,0.17492,87862.0,87857.0,0.01138213]
[1769426885036,0.17492,87862.0,87852.0,0.05691352]
[1769426885270,0.56943017,87876.0,87860.0,0.01138174]
[1769426885501,0.17488,87875.0,87863.0,0.60955552]
[1769426885949,0.17488,87875.0,87863.0,0.59817417]
[1769426886323,0.17488,87875.0,87861.0,0.06095559]
[1769426886544,0.17488,87875.0,87862.0,0.00501111]
[1769426886862,0.17534567,87875.0,87862.0,0.08432199]
[1769426889409,0.74477584,87875.0,87862.0,0.08432199]
[1769426891899,0.74477584,87875.0,87862.0,0.00501111]
[1769426893167,0.76832102,87875.0,87862.0,0.00501111]
[1769426894887,0.17534567,87875.0,87862.0,0.60318528]
[1769426895060,0.17534567,87875.0,87862.0,0.60955565]
[1769426895255,0.17534567,87875.0,87863.0,0.07962433]
[1769426896689,0.17534567,87875.0,87863.0,0.09100568]
[1769426896897,0.17534567,87875.0,87863.0,0.07962433]
[1769426899442,0.19914028,87875.0,87863.0,0.07962433]
[1769426899609,0.19937748,87875.0,87863.0,0.07962433]
[1769426899812,0.02844982,87874.0,87864.0,0.01592987]
[1769426900102,0.02844982,87874.0,87863.0,0.07962433]
[1769426900283,0.05224443,87874.0,87863.0,0.07962433]
[1769426900451,0.05248163,87874.0,87863.0,0.07962433]
[1769426902534,0.6219118,87874.0,87863.0,0.07962433]
[1769426902732,0.27241991,87873.0,87857.0,0.00572155]
[1769426902934,0.59322478,87869.0,87851.0,0.63305346]
[1769426903137,0.02379461,87868.0,87851.0,0.58180016]
[1769426903805,0.02379461,87868.0,87852.0,0.01138278]
[1769426904032,0.02379461,87868.0,87851.0,0.63871452]
[1769426904252,0.02379461,87868.0,87852.0,0.11160278]
[1769426906065,0.02379461,87868.0,87851.0,0.58180016]
[1769426906950,0.02379461,87866.0,87851.0,0.0113829]
[1769426907100,0.02379461,87865.0,87851.0,0.0113829]
[1769426907286,0.02379461,87865.0,87848.0,0.05691612]
[1769426907287,0.56943017,87865.0,87848.0,0.05691612]
[1769426907486,0.59322478,87863.0,87849.0,0.01138316]
[1769426908320,0.59322478,87863.0,87850.0,0.01138303]
[1769426908624,0.59322478,87863.0,87849.0,0.06829881]
[1769426908823,0.59322478,87863.0,87850.0,0.06829822]
[1769426908986,0.59322478,87863.0,87851.0,0.0113829]
[1769426909170,0.59322478,87863.0,87850.0,0.01138303]
[1769426909379,0.59322478,87863.0,87851.0,0.0113829]
[1769426911373,0.59322478,87863.0,87848.0,0.07402747]
[1769426911661,0.59322478,87863.0,87849.0,0.01138316]
[1769426912068,0.59322478,87863.0,87849.0,0.06829896]
[1769426912269,0.59322478,87863.0,87850.0,0.01138303]
[1769426913395,0.56943017,87863.0,87847.0,0.00572883]
[1769426913594,0.27241991,87870.0,87846.0,0.00572886]
[1769426913595,0.02379461,87862.0,87846.0,0.00572886]
[1769426913795,0.56943017,87860.0,87846.0,0.00572886]
[1769426913974,0.59322478,87860.0,87844.0,0.00572886]
[1769426914180,0.59322478,87860.0,87845.0,0.01138368]
[1769426914515,0.59322478,87860.0,87846.0,0.06830125]
[1769426914779,0.59322478,87860.0,87846.0,0.01138355]
[1769426915194,0.59322478,87860.0,87846.0,0.06830074]
[1769426915401,0.59322478,87860.0,87846.0,0.01138355]
[1769426916044,0.59322478,87860.0,87845.0,0.01138368]
[1769426916641,0.59322478,87860.0,87846.0,0.01138355]
[1769426917040,0.59322478,87860.0,87846.0,0.06830127]
[1769426917245,0.59322478,87860.0,87846.0,0.06830114]
[1769426917476,0.59322478,87860.0,87845.0,0.00573136]
[1769426917695,0.59322478,87860.0,87844.0,0.58180107]
[1769426918112,0.59322478,87860.0,87844.0,0.69340385]
[1769426919426,0.59322478,87860.0,87844.0,0.68202004]
[1769426921826,0.59322478,87860.0,87844.0,0.7070386]
[1769426922049,0.59322478,87860.0,87844.0,0.71842241]
[1769426922416,0.59322478,87860.0,87845.0,0.01138368]
[1769426922636,0.59322478,87860.0,87846.0,0.01138355]
[1769426923480,0.56943017,87860.0,87848.0,0.01138329]
[1769426923689,0.56943017,87860.0,87849.0,0.00573052]
[1769426923896,0.56943017,87860.0,87847.0,0.01711394]
[1769426924899,0.01,87847.0,87835.0,0.01150078]
[1769426925055,0.0099223,87847.0,87837.0,0.01138472]
[1769426925255,0.02379461,87853.0,87841.0,0.06830482]
[1769426925481,0.02379461,87853.0,87835.0,0.0001158]
[1769426925482,0.02379461,87853.0,87840.0,0.01138433]
[1769426925681,0.59322478,87858.0,87841.0,0.0113842]
[1769426925949,0.59322478,87858.0,87842.0,0.12298685]
[1769426926198,0.59369017,87858.0,87842.0,0.12298685]
[1769426926398,0.59369017,87858.0,87843.0,0.05691961]
[1769426926599,0.59369017,87858.0,87845.0,0.01138368]
[1769426926772,0.59369017,87858.0,87846.0,0.01138355]
[1769426926985,0.59369017,87858.0,87845.0,0.01138368]
[1769426927188,0.02379461,87871.0,87849.0,0.05691522]
[1769426927409,0.17488,87867.0,87852.0,0.57041726]
[1769426927539,0.02845241,87866.0,87852.0,0.57041726]
[1769426929448,0.02694427,87866.0,87852.0,0.57041726]
[1769426929642,0.02694427,87866.0,87853.0,0.07427657]
[1769426930602,0.0211291,87867.0,87854.0,0.02276504]
[1769426930841,0.02845241,87866.0,87854.0,0.02276504]
[1769426931052,0.59788258,87866.0,87854.0,0.02276504]
[1769426931254,0.56943017,87866.0,87851.0,0.02389815]
[1769426931433,0.02845273,87865.0,87852.0,0.08017402]
[1769426931854,0.02845273,87865.0,87853.0,0.02276529]
[1769426934964,0.02845273,87865.0,87854.0,0.02276502]
[1769426935184,0.02845273,87865.0,87855.0,0.02276478]
[1769426935388,0.02845273,87865.0,87856.0,0.02276452]
[1769426937410,0.02845273,87865.0,87849.0,0.00046539]
[1769426937968,0.02845273,87865.0,87849.0,0.02322939]
[1769426938302,0.05177256,87865.0,87849.0,0.02322939]
[1769426939091,0.14782844,87865.0,87849.0,0.02322939]
[1769426939862,0.05177256,87865.0,87849.0,0.02322939]
[1769426940270,0.05177256,87865.0,87849.0,0.00046539]
[1769426940685,0.05177256,87865.0,87849.0,0.02323172]
[1769426941308,0.3951188,87866.0,87849.0,0.02323172]
[1769426941733,0.3951188,87866.0,87849.0,0.03461488]
[1769426941935,0.0211291,87867.0,87853.0,0.01138265]
[1769426942133,0.17492,87871.0,87854.0,0.59758411]
[1769426942334,0.27242979,87870.0,87854.0,0.57481907]
[1769426942555,0.17492,87871.0,87854.0,0.57481907]
[1769426942761,0.17492,87871.0,87855.0,0.09273945]
[1769426942969,0.27242979,87870.0,87856.0,0.01842696]
[1769426944192,0.17492,87871.0,87856.0,0.01842696]
[1769426945750,0.0002372,87872.0,87857.0,0.05691045]
[1769426945983,0.0002372,87872.0,87860.0,0.27242979]
[1769426946198,0.0002372,87872.0,87860.0,0.43070242]
[1769426946375,0.0002372,87872.0,87861.0,0.01731408]
[1769426947195,0.0002372,87872.0,87861.0,0.07422167]
[1769426947409,0.0002372,87872.0,87861.0,0.02869569]
[1769426947845,0.0002372,87872.0,87862.0,0.01138148]
[1769426948087,0.0002372,87872.0,87863.0,0.11160278]
[1769426951030,0.39686191,87871.0,87847.0,0.01138342]
[1769426951197,0.39686191,87864.0,87850.0,0.01138303]
[1769426951401,0.02331983,87866.0,87850.0,0.56332238]
[1769426951609,0.02331983,87866.0,87851.0,0.09786916]
[1769426951811,0.02331983,87866.0,87851.0,0.10925206]
[1769426952251,0.02331983,87866.0,87851.0,0.09786916]
[1769426952428,0.02331983,87866.0,87851.0,0.10925206]
[1769426954270,0.02331983,87866.0,87851.0,0.09786916]
[1769426954472,0.02331983,87866.0,87851.0,0.10925206]
[1769426954707,0.02331983,87866.0,87851.0,0.0113829]
[1769426954923,0.39686191,87865.0,87850.0,0.01138303]
[1769426955088,0.02331983,87864.0,87850.0,0.01138303]
[1769426958318,0.02331983,87864.0,87849.0,0.02005835]
[1769426958520,0.02348522,87863.0,87849.0,0.02005835]
[1769426958653,0.02348522,87859.0,87849.0,0.00046539]
[1769426958865,0.02348522,87857.0,87849.0,0.00046539]
[1769426966514,0.02348522,87857.0,87831.0,0.23656518]
[1769426966515,0.38956041,87840.0,87818.0,0.01138718]
[1769426966719,0.38956041,87840.0,87815.0,0.2205878]
[1769426966720,0.38956041,87837.0,87824.0,0.00021676]
[1769426966938,0.02348522,87836.0,87825.0,0.01138627]
[1769426967149,0.38956041,87845.0,87825.0,0.59582108]
[1769426967354,0.02348522,87844.0,87825.0,0.59582108]
[1769426967998,0.38956041,87844.0,87825.0,0.59582108]
[1769426968224,0.02348522,87843.0,87825.0,0.59582108]
[1769426968442,0.02348522,87843.0,87825.0,0.68493499]
[1769426968649,0.27242979,87840.0,87825.0,0.68493499]
[1769426969716,0.27242979,87840.0,87826.0,0.04556]
[1769426971845,0.27242979,87836.0,87824.0,0.00021676]
[1769426972056,0.38956041,87835.0,87824.0,0.00021676]
[1769426972274,0.41304563,87835.0,87824.0,0.00021676]
[1769426972486,0.02348522,87835.0,87824.0,0.00021676]
[1769426973136,0.27242979,87840.0,87824.0,0.00021676]
[1769426973349,0.06854754,87839.0,87824.0,0.00021676]
[1769426975709,0.06854754,87839.0,87824.0,0.59603784]
[1769426976169,0.27242979,87840.0,87824.0,0.59603784]
[1769426976615,0.09593406,87840.0,87824.0,0.59603784]
[1769426979456,0.09593406,87840.0,87817.0,0.06832274]
[1769426979457,0.60452787,87822.0,87815.0,0.12936]
[1769426979637,0.03340752,87824.0,87815.0,0.12946627]
[1769426979833,0.02348522,87823.0,87815.0,0.12946627]
[1769426980040,0.02348522,87823.0,87815.0,0.14698146]
[1769426980453,0.02348522,87823.0,87815.0,0.12946627]
[1769426984288,0.02348522,87823.0,87815.0,0.00010627]
[1769426984495,0.02348522,87823.0,87816.0,0.22052]
[1769426988120,0.01138472,87837.0,87817.0,0.01138394]
[1769426988327,0.01138472,87837.0,87819.0,0.31145143]
[1769426988328,0.06830991,87835.0,87819.0,0.31145143]
[1769426988528,0.02846278,87834.0,87819.0,0.02641538]
[1769426988709,0.03984789,87834.0,87818.0,1e-08]
[1769426988926,0.06438125,87834.0,87818.0,1e-08]
[1769426989126,0.66771827,87834.0,87818.0,1e-08]
[1769426989318,0.63925549,87834.0,87818.0,1e-08]
[1769426989520,0.62787038,87834.0,87818.0,1e-08]
[1769426989720,0.46651897,87862.0,87808.0,0.01151408]
[1769426989721,0.00999999,87817.0,87808.0,0.0001256]